{"text_format":"1","workbook":"xlsx","n_sheets":2,"sheets":["Wykres1","Woda"],"not_rendered":{"charts":2,"images":7,"macros":1,"external_links":0,"defined_names":3,"comments":1,"pivot_tables":0},"unopened":[{"sheet":"Wykres1","index":0,"reason":"not_a_worksheet"}],"bounds":{"document_bytes":16777216,"sheet_cells":100000,"rows_first":2000,"rows_last":500,"rows_between":2000,"halvings":0,"cell_chars":16384,"cell_head_chars":4096},"cells_cut":0,"cells_raw":0,"read":"whole","date_system":"1900"}

{"sheet":"Woda","index":1,"n_rows":131,"n_cols":33,"rows_kept":131,"cut":false,"hidden":false,"merged":[[122,1,122,2],[123,1,123,2],[125,1,125,2],[117,1,117,2],[118,1,118,2],[119,1,119,2],[120,1,120,2],[121,1,121,2],[112,1,112,2],[113,1,113,2],[114,1,114,2],[115,1,115,2],[116,1,116,2],[124,1,124,2],[107,1,107,2],[108,1,108,2],[109,1,109,2],[110,1,110,2],[111,1,111,2],[101,1,101,2],[102,1,102,2],[104,1,104,2],[105,1,105,2],[106,1,106,2],[98,1,98,2],[99,1,99,2],[100,1,100,2],[93,1,93,2],[94,1,94,2],[95,1,95,2],[96,1,96,2],[97,1,97,2],[88,1,88,2],[89,1,89,2],[90,1,90,2],[91,1,91,2],[92,1,92,2],[83,1,83,2],[84,1,84,2],[85,1,85,2],[86,1,86,2],[87,1,87,2],[79,1,79,2],[80,1,80,2],[81,1,81,2],[82,1,82,2],[74,1,74,2],[75,1,75,2],[76,1,76,2],[77,1,77,2],[78,1,78,2],[69,1,69,2],[70,1,70,2],[71,1,71,2],[72,1,72,2],[73,1,73,2],[64,1,64,2],[65,1,65,2],[66,1,66,2],[67,1,67,2],[68,1,68,2],[59,1,59,2],[60,1,60,2],[61,1,61,2],[62,1,62,2],[63,1,63,2],[54,1,54,2],[55,1,55,2],[56,1,56,2],[57,1,57,2],[58,1,58,2],[52,1,52,2],[53,1,53,2],[30,3,30,6],[31,3,31,6],[32,3,32,6],[33,3,33,6],[36,3,36,6],[42,3,42,6],[34,3,34,6],[35,3,35,6],[45,8,46,8],[37,3,37,6],[38,3,38,6],[39,3,39,6],[21,2,22,4],[23,2,23,4],[129,1,129,7],[21,7,22,7],[47,5,47,6],[48,5,48,6],[126,2,126,6],[27,3,27,6],[28,3,28,6],[29,3,29,6],[103,5,103,6],[21,5,22,5],[21,6,22,6],[49,5,49,6],[40,3,40,6],[41,3,41,6],[47,1,47,2],[48,1,48,2],[50,1,50,2],[51,1,51,2]]}
[null,null,"Zakresy badań:"]
[null,1,"Parametry gr. A  monitoringu wody do spożycia ",null,null,null,1,1,{"$f":"B2","v":1}]
[null,2,"Parametry gr. B monitoringu wody do spożycia ",null,null,null,1,1,2]
[null,3,"Woda z ujęcia indywidualnego (studnia)",null,null,null,1,1,3]
[null,4,"Woda z kąpieliska",null,null,null,0,1,4]
[null,5,"Woda mineralna, źródlana, stołowa - badanie podstawowe",null,null,null,1,1,5]
[null,6,"Woda mineralna, źródlana, stołowa - badanie rozszerzone",null,null,null,1,1,6]
[null,7,"Woda z pływalni - woda wprowadzona do niecki basenowej z systemu cyrkulacji",null,null,null,1,1,7]
[null,8,"Woda z pływalni - woda w niecce basenowej  ",null,null,null,1,1,{"$f":"B9","v":8}]
[null,9,"Woda z pływalni - woda w nieckach basenowych wyposażonych w urządzenia wytwarzające aerozol wodno-powietrzny",null,null,null,1,1,9]
[null,10,"Woda z pływalni - woda w nieckach basenowych udostępnianych do nauki pływania dla niemowląt i małych dzieci do lat 3",null,null,null,1,1,10]
[null,11,"Woda z pływalni - woda ciepła (m. in. woda w natryskach)",null,null,null,0,1,11]
[null,12,"Woda oczyszczona-apteka",null,null,null,1,1,12]
[null,13,"Woda ciepła",null,null,null,0,1,13]
[null,14,"Woda z cysterny",null,null,null,0,1,14]
[null,15,"Woda popłuczna",null,null,null,1,0,15]
[null,16,"Woda z piezometru",null,null,null,1,0,16]
[null,17,"Podstawowe parametry mikrobiologiczne",null,null,null,0,1,17]
[null,18,"Inny (podać jaki)",null,null,null,0,0,18]
[]
[]
[null,null,"Zakres badania (wpisać / wybrać z listy):",null,null,"Liczba próbek","Fizchem.","Mikro."]
[]
[null,{"$f":"IF(ISNUMBER(VLOOKUP(C24,C2:I19,6,FALSE)),VLOOKUP(C24,C2:I19,6,FALSE),19)","v":1},"Woda z cysterny",null,null,null,{"$f":"IF(C24<>\"\",IF(ISNUMBER(VLOOKUP(C24,C2:H19,4,FALSE)),VLOOKUP(C24,C2:H19,4,FALSE),0),0)","v":0},{"$f":"IF(C24<>\"\",IF(ISNUMBER(VLOOKUP(C24,C2:H19,5,FALSE)),VLOOKUP(C24,C2:H19,5,FALSE),0),0)","v":0}]
[]
[]
[null,"Opis próbki do badań:"]
[null,"Lp.","Rodzaj próbki","Miejsce pobrania",null,null,null,null,"Pokaż / Ukryj wiersz"]
[null,1]
[null,2]
[null,3]
[null,4]
[null,5]
[null,6]
[null,7]
[null,8]
[null,9]
[null,10]
[null,11]
[null,12]
[null,13]
[null,14]
[null,15]
[]
[]
[null,null,null,null,null,null,null,null,"Po wybraniu parametrów kliknij \"Filtruj wybrane\" w celu skrócenia listy do drukowania",null,null,null,null,null,null,15,16,17,18,19,20,21,22,23,24,25,26,27,28,29,30,31,32]
["Zlecam wykonanie badań następującymi metodami*:",null,null,null,null,null,null,null,null,null,null,null,null,null,null,null,1,2,3,4,5,6,7,8,9,10,11,12,13,14,15,16,17]
["Lp.","Badany parametr",null,"Stosowana metodyka\n – norma / procedura badawcza**","Cena jednostkowa netto","Cena jednostkowa brutto",null,"Wybrane*",null,null,null,null,null,null,null,"x","MOK","MOP","studnia","kąpielisko","m. podst","m. rozszerz","- wprowadzona","- w niecce","- aerozol","- dzieci do lat 3","- ciepła","apteka","ciepła","z cysterny","popłuczna","piezometr","mikrobiol"]
[]
[null,null,"Parametry fizyko-chemiczne i sensoryczne",null,null,null,null,null,null,null,null,null,null,null,null,"F",1,1,1,1,1,1,1,1,1,1,1,1,1,1,1,1,1]
[{"$f":"(SUBTOTAL(3,$B$51:B51))","v":1},"Pobieranie próbek do badań fizykochemicznych ",null,"PN-ISO 5667-5:2017-10, PB-203/LLF wyd. II z 30.01.2024","­","­",null,null,null,null,null,null,null,null,null,"F",1,1,1,1,1,1,1,1,1,1,1,1,1,1,1,1,1]
[{"$f":"(SUBTOTAL(3,$B$51:B52))","v":2},"Temperatura pobranej próbki wody",null,"PN-77/C-04584",17,20.91,null,null,null,null,null,null,null,null,null,"F",null,1,1,null,1,1,1,1,1,1]
[{"$f":"(SUBTOTAL(3,$B$51:B53))","v":3},"Aniony - Azotany",null,"PN-EN ISO 10304-1:2009",116,142.68,1,null,null,null,null,null,null,null,null,"F",null,1,1,null,1,1,1,1,1,1]
[{"$f":"(SUBTOTAL(3,$B$51:B54))","v":4},"Aniony - Azotyny",null,"PN-EN ISO 10304-1:2009",116,142.68,1,null,null,null,null,null,null,null,null,"F",null,1,1,null,1,1]
[{"$f":"(SUBTOTAL(3,$B$51:B55))","v":5},"Aniony - Chlorki",null,"PN-EN ISO 10304-1:2009",116,142.68,1,null,null,null,null,null,null,null,null,"F",null,1,1,null,1,1]
[{"$f":"(SUBTOTAL(3,$B$51:B56))","v":6},"Aniony - Fluorki",null,"PN-EN ISO 10304-1:2009",116,142.68,1,null,null,null,null,null,null,null,null,"F",null,1,null,null,1,1]
[{"$f":"(SUBTOTAL(3,$B$51:B57))","v":7},"Aniony - Fosforany",null,"PN-EN ISO 10304-1:2009",116,142.68,1,null,null,null,null,null,null,null,null,"F"]
[{"$f":"(SUBTOTAL(3,$B$51:B58))","v":8},"Aniony - Siarczany",null,"PN-EN ISO 10304-1:2009",116,142.68,1,null,null,null,null,null,null,null,null,"F",null,1,1,null,1,1]
[{"$f":"(SUBTOTAL(3,$B$51:B59))","v":9},"Antymon",null,"PB-201/LLF wyd. I z 30.01.2023",104,127.92,null,null,null,null,null,null,null,null,null,"F",null,1,null,null,null,1]
[{"$f":"(SUBTOTAL(3,$B$51:B60))","v":10},"Arsen",null,"PN-EN ISO 15586:2005",107,131.61000000000001,null,null,null,null,null,null,null,null,null,"F",null,1,null,null,null,1]
[{"$f":"(SUBTOTAL(3,$B$51:B61))","v":11},"Barwa",null,"PN-EN ISO 7887:2012 + Ap1:2015-06 Metoda D",88,108.24,null,null,null,null,null,null,null,null,null,"F",1,1,1,null,1,1]
[{"$f":"(SUBTOTAL(3,$B$51:B62))","v":12},"Bor",null,"PB-202/LLF wyd. I z 30.01.2023",128,157.44,null,null,null,null,null,null,null,null,null,"F",null,1,null,null,null,1]
[{"$f":"(SUBTOTAL(3,$B$51:B63))","v":13},"Bromiany",null,"PN-EN ISO 15061:2003",170,209.1,3,null,null,null,null,null,null,null,null,"F",null,1]
[{"$f":"(SUBTOTAL(3,$B$51:B64))","v":14},"Chlor wolny",null,"PN-EN ISO 7393-2:2018-04",49,60.27,null,null,null,null,null,null,null,null,null,"F",1,1,null,null,null,null,null,1,1,1]
[{"$f":"(SUBTOTAL(3,$B$51:B65))","v":15},"Chlor związany",null,"PN-EN ISO 7393-2:2018-04",49,60.27,null,null,null,null,null,null,null,null,null,"F",null,null,null,null,null,null,1,1,1,1]
[{"$f":"(SUBTOTAL(3,$B$51:B66))","v":16},"Chlorany i Chloryny suma",null," PN-EN ISO 10304-4:2022-08",170,209.1,3,null,null,null,null,null,null,null,null,"F",null,1]
[{"$f":"(SUBTOTAL(3,$B$51:B67))","v":17},"Chrom ogólny",null,"PN-EN ISO 15586:2005",86,105.78,null,null,null,null,null,null,null,null,null,"F",null,1,null,null,null,1]
[{"$f":"(SUBTOTAL(3,$B$51:B68))","v":18},"Cyjanki ogólne",null,"PN-EN ISO 14403-2:2012",142,174.66,null,null,null,null,null,null,null,null,null,"F",null,1,null,null,null,1]
[{"$f":"(SUBTOTAL(3,$B$51:B69))","v":19},"Glin",null,"PN-EN ISO 15586:2005",107,131.61000000000001,null,null,null,null,null,null,null,null,null,"F",null,1,null,null,null,1,null,1,1,1]
[{"$f":"(SUBTOTAL(3,$B$51:B70))","v":20},"Kadm",null,"PN-EN ISO 15586:2005",104,127.92,null,null,null,null,null,null,null,null,null,"F",null,1,null,null,null,1]
[{"$f":"(SUBTOTAL(3,$B$51:B71))","v":21},"Kationy - Amonowy jon",null,"PN-EN ISO 14911:2002",123,151.29,2,null,null,null,null,null,null,null,null,"F",null,1,1,null,1,1]
[{"$f":"(SUBTOTAL(3,$B$51:B72))","v":22},"Kationy - Magnez",null,"PN-EN ISO 14911:2002",123,151.29,2,null,null,null,null,null,null,null,null,"F",null,1,null,null,1,1]
[{"$f":"(SUBTOTAL(3,$B$51:B73))","v":23},"Kationy - Potas",null,"PN-EN ISO 14911:2002",123,151.29,2,null,null,null,null,null,null,null,null,"F",null,null,null,null,1,1]
[{"$f":"(SUBTOTAL(3,$B$51:B74))","v":24},"Kationy - Sód",null,"PN-EN ISO 14911:2002",123,151.29,2,null,null,null,null,null,null,null,null,"F",null,1,null,null,1,1]
[{"$f":"(SUBTOTAL(3,$B$51:B75))","v":25},"Kationy - Wapń",null,"PN-EN ISO 14911:2002",123,151.29,2,null,null,null,null,null,null,null,null,"F",null,null,null,null,1,1]
[{"$f":"(SUBTOTAL(3,$B$51:B76))","v":26},"Lotne związki organiczne - 1,2-dichloroetan",null,"PN-EN ISO 15680:2008",242,297.66000000000003,4,null,null,null,null,null,null,null,null,"F",null,1,null,null,null,1]
[{"$f":"(SUBTOTAL(3,$B$51:B77))","v":27},"Lotne związki organiczne - Benzen",null,"PN-EN ISO 15680:2008",242,297.66000000000003,4,null,null,null,null,null,null,null,null,"F",null,1,null,null,null,1]
[{"$f":"(SUBTOTAL(3,$B$51:B78))","v":28},"Lotne związki organiczne - Chlorek winylu",null,"PN-EN ISO 15680:2008",242,297.66000000000003,4,null,null,null,null,null,null,null,null,"F",null,1,null,null,null,1]
[{"$f":"(SUBTOTAL(3,$B$51:B79))","v":29},"Lotne związki organiczne - Chloroform",null,"PN-EN ISO 15680:2008",242,297.66000000000003,4,null,null,null,null,null,null,null,null,"F",null,1,null,null,null,null,1,1,1,1]
[{"$f":"(SUBTOTAL(3,$B$51:B80))","v":30},"Lotne związki organiczne - Epichlorohydryna",null,"PN-EN ISO 15680:2008",242,297.66000000000003,4,null,null,null,null,null,null,null,null,"F",null,1]
[{"$f":"(SUBTOTAL(3,$B$51:B81))","v":31},"Lotne związki organiczne - Bromodichlorometan",null,"PN-EN ISO 15680:2008",242,297.66000000000003,4,null,null,null,null,null,null,null,null,"F",null,1]
[{"$f":"(SUBTOTAL(3,$B$51:B82))","v":32},"Lotne związki organiczne - THM suma: bromoform, chloroform, bromodichlorometan, dibromochlorometan",null,"PN-EN ISO 15680:2008",242,297.66000000000003,null,null,null,null,null,null,null,null,null,"F",null,1,null,null,null,1,1,1,1,1]
[{"$f":"(SUBTOTAL(3,$B$51:B83))","v":33},"Lotne związki organiczne - Trichloroeten i Tetrachloroeten suma",null,"PN-EN ISO 15680:2008",242,297.66000000000003,4,null,null,null,null,null,null,null,null,"F",null,1,null,null,null,1]
[{"$f":"(SUBTOTAL(3,$B$51:B84))","v":34},"Mangan",null,"PN-EN ISO 15586:2005",107,131.61000000000001,null,null,null,null,null,null,null,null,null,"F",1,1,1,null,1,1]
[{"$f":"(SUBTOTAL(3,$B$51:B85))","v":35},"Mętność",null,"PN-EN ISO 7027-1:2016-09",25,30.75,null,null,null,null,null,null,null,null,null,"F",1,1,1,null,1,1,1,1,1,1]
[{"$f":"(SUBTOTAL(3,$B$51:B86))","v":36},"Miedź",null,"PN-ISO 8288:2002",85,104.55,null,null,null,null,null,null,null,null,null,"F",null,1,null,null,null,1]
[{"$f":"(SUBTOTAL(3,$B$51:B87))","v":37},"Nikiel",null,"PN-EN ISO 15586:2005",107,131.61000000000001,null,null,null,null,null,null,null,null,null,"F",null,1,null,null,null,1]
[{"$f":"(SUBTOTAL(3,$B$51:B88))","v":38},"Ołów",null,"PN-EN ISO 15586:2005",107,131.61000000000001,null,null,null,null,null,null,null,null,null,"F",null,1,null,null,null,1]
[{"$f":"(SUBTOTAL(3,$B$51:B89))","v":39},"OWO",null,"PN-EN 1484:1999",124,152.52000000000001,null,null,null,null,null,null,null,null,null,"F",null,1,1,null,1,1]
[{"$f":"(SUBTOTAL(3,$B$51:B90))","v":40},"Pestycydy suma: 1,2-dichloropropan, 1,3-dichloropropen cis, 1,3-dichloropropen trans, 1,2-dibromoetan, 1,2-dibromo-3-chloropropan",null,"PN-EN ISO 15680:2008",242,297.66000000000003,4,null,null,null,null,null,null,null,null,"F",null,1,null,null,null,1]
[{"$f":"(SUBTOTAL(3,$B$51:B91))","v":41},"pH",null,"PN-EN ISO 10523:2012",65,79.95,null,null,null,null,null,null,null,null,null,"F",1,1,1,null,1,1,1,1,1,1]
[{"$f":"(SUBTOTAL(3,$B$51:B92))","v":42},"Przewodność właściwa",null,"PN-EN 27888:1999",48,59.04,null,null,null,null,null,null,null,null,null,"F",1,1,1,null,1,1]
[{"$f":"(SUBTOTAL(3,$B$51:B93))","v":43},"Rtęć",null,"PN-EN ISO 12846:2012 ",116,142.68,null,null,null,null,null,null,null,null,null,"F",null,1,null,null,null,1]
[{"$f":"(SUBTOTAL(3,$B$51:B94))","v":44},"Selen",null,"PN-ISO 9965:2001",120,147.6,null,null,null,null,null,null,null,null,null,"F",null,1,null,null,null,1]
[{"$f":"(SUBTOTAL(3,$B$51:B95))","v":45},"Sensoryka - Smak",null,"PN-EN 1622:2006",114,140.22,null,null,null,null,null,null,null,null,null,"F",1,1,null,null,1,1]
[{"$f":"(SUBTOTAL(3,$B$51:B96))","v":46},"Sensoryka - Zapach",null,"PN-EN 1622:2006",119,146.37,null,null,null,null,null,null,null,null,null,"F",1,1,1,null,1,1]
[{"$f":"(SUBTOTAL(3,$B$51:B97))","v":47},"Twardość ogólna",null,"PN-ISO 6059:1999",94,115.62,null,null,null,null,null,null,null,null,null,"F",null,1,1,null,1,1]
[{"$f":"(SUBTOTAL(3,$B$51:B98))","v":48},"Indeks nadmanganianowy/utlenialność",null,"PN-EN ISO 8467:2001",94,115.62,null,null,null,null,null,null,null,null,null,"F",null,1,null,null,1,1,null,1,1,1]
[{"$f":"(SUBTOTAL(3,$B$51:B99))","v":49},"WWA suma (woda): benzo(b)fluoranten, benzo(k)fluoranten, benzo(ghi)perylen,  indeno(1,2,3-cd)piren",null,"PN-EN ISO 17993:2005",148,182.04,5,null,null,null,null,null,null,null,null,"F",null,1,null,null,null,1]
[{"$f":"(SUBTOTAL(3,$B$51:B100))","v":50},"WWA: Benzo(a)piren",null,"PN-EN ISO 17993:2005",148,182.04,5,null,null,null,null,null,null,null,null,"F",null,1,null,null,null,1]
[{"$f":"(SUBTOTAL(3,$B$51:B101))","v":51},"Żelazo",null,"PN-EN ISO 15586:2005",107,131.61000000000001,null,null,null,null,null,null,null,null,null,"F",1,1,null,null,1,1,null,1,1,1]
[{"$f":"(SUBTOTAL(3,$B$51:B102))","v":52},"Żelazo ogólne",null,"PN-ISO 6332:2001/Ap1:2016-06\nz wyłączeniem pkt. 6.4, 7.1.2, 7.3",77,94.71]
[{"$f":"(SUBTOTAL(3,$B$51:B103))","v":53},"Bor, glin, selen, miedź, arsen, chrom, mangan, nikiel, ołów, kadm, antymon, żelazo",null,"PN-EN ISO 17294-2:2024-04",200,246,null,null,null,null,null,null,null,null,null,"F",null,null,1,null,null,null,null,null,null,null,null,null,null,null,1]
[null,null,"Parametry mikrobiologiczne",null,null,null,null,null,null,null,null,null,null,null,null,"M",1,1,1,1,1,1,1,1,1,1,1,1,1,1,null,null,1]
[{"$f":"(SUBTOTAL(3,$B$105:B105))","v":1},"Pobieranie próbek do badań mikrobiologicznych",null,"PN-EN ISO 19458:2007","­","­",null,null,null,null,null,null,null,null,null,"M",1,1,1,1,1,1,1,1,1,1,1,1,1,1,1]
[{"$f":"(SUBTOTAL(3,$B$105:B106))","v":2},"Clostridium perfringens (łącznie z przetrwalnikami) - ujęcie powierzchniowe",null,"PN-EN ISO 14189:2016-10",105,129.15,null,null,null,null,null,null,null,null,null,"M",null,1]
[{"$f":"(SUBTOTAL(3,$B$105:B107))","v":3},"Clostridium perfringens (łącznie z przetrwalnikami) - potwierdzenia",null,"PN-EN ISO 14189:2016-10",100,123,null,null,null,null,null,null,null,null,null,"M",null,1]
[{"$f":"(SUBTOTAL(3,$B$105:B108))","v":4},"Enterokoki (paciorkowce kałowe)",null,"PN-EN ISO 7899-2:2004",84,103.32,null,null,null,null,null,null,null,null,null,"M",null,1,1,1,1,1,null,null,null,null,null,null,null,1,null,null,1]
[{"$f":"(SUBTOTAL(3,$B$105:B109))","v":5},"Enterokoki (paciorkowce kałowe) - potwierdzenia",null,"PN-EN ISO 7899-2:2004",43,52.89,null,null,null,null,null,null,null,null,null,"M",null,1,1,1,1,1,null,null,null,null,null,null,null,1,null,null,1]
[{"$f":"(SUBTOTAL(3,$B$105:B110))","v":6},"Escherichia coli ",null,"PN-EN ISO 9308-3:2002",196,241.08,null,null,null,null,null,null,null,null,null,"M",null,null,null,1]
[{"$f":"(SUBTOTAL(3,$B$105:B111))","v":7},"Escherichia coli, Bakterie grupy coli",null,"PN-EN ISO 9308-1:2014-12 + A1:2017-04",84,103.32,null,null,null,null,null,null,null,null,null,"M",1,1,1,null,1,1,1,1,1,1,null,null,null,1,null,null,1]
[{"$f":"(SUBTOTAL(3,$B$105:B112))","v":8},"Bakterie grupy coli - potwierdzenia",null,"PN-EN ISO 9308-1:2014-12 + A1:2017-04",75,92.25,null,null,null,null,null,null,null,null,null,"M",1,1,1,null,1,1,1,1,1,1,null,null,null,1,null,null,1]
[{"$f":"(SUBTOTAL(3,$B$105:B113))","v":9},"Gronkowce koagulazo-dodatnie",null,"PB-01/LLM wyd. I z 17.03.2023",127,156.21,null,null,null,null,null,null,null,null,null,"M",null,null,null,null,null,null,null,null,null,1]
[{"$f":"(SUBTOTAL(3,$B$105:B114))","v":10},"Gronkowce koagulazo-dodatnie - potwierdzenia",null,"PB-01/LLM wyd. I z 17.03.2023",302,371.46,null,null,null,null,null,null,null,null,null,"M",null,null,null,null,null,null,null,null,null,1]
[{"$f":"(SUBTOTAL(3,$B$105:B115))","v":11},"Legionella sp. w 100 ml",null,"PN-EN ISO 11731:2017-08 + Ap1:2019-12",231,284.13,null,null,null,null,null,null,null,null,null,"M",null,null,null,null,null,null,1,1,1,1,1,null,1]
[{"$f":"(SUBTOTAL(3,$B$105:B116))","v":12},"Legionella sp.  w 100 ml - potwierdzenia",null,"PN-EN ISO 11731:2017-08 + Ap1:2019-12",165,202.95,null,null,null,null,null,null,null,null,null,"M",null,null,null,null,null,null,1,1,1,1,1,null,1]
[{"$f":"(SUBTOTAL(3,$B$105:B117))","v":13},"Legionella sp. w 1000 ml",null,"PN-EN ISO 11731:2017-08 + Ap1:2019-12",280,344.4,null,null,null,null,null,null,null,null,null,"M"]
[{"$f":"(SUBTOTAL(3,$B$105:B118))","v":14},"Legionella sp. w 1000 ml - potwierdzenia",null,"PN-EN ISO 11731:2017-08 + Ap1:2019-12",194,238.62,null,null,null,null,null,null,null,null,null,"M"]
[{"$f":"(SUBTOTAL(3,$B$105:B119))","v":15},"Ogólna liczba mikroorganizmów w 22oC",null,"PN-EN ISO 6222:2004",76,93.48,null,null,null,null,null,null,null,null,null,"M",1,1,null,null,1,1]
[{"$f":"(SUBTOTAL(3,$B$105:B120))","v":16},"Ogólna liczba mikroorganizmów w 36oC",null,"PN-EN ISO 6222:2004",76,93.48,null,null,null,null,null,null,null,null,null,"M",null,null,null,null,1,1,1,1,1,1,null,null,null,1]
[{"$f":"(SUBTOTAL(3,$B$105:B121))","v":17},"Przetrwalniki beztlenowców redukujących siarczyny (clostridia)",null,"PN-EN ISO 26461-2:2001",142,174.66,null,null,null,null,null,null,null,null,null,"M",null,null,null,null,1,1]
[{"$f":"(SUBTOTAL(3,$B$105:B122))","v":18},"Pseudomonas aeruginosa",null,"PN-EN ISO 16266:2009",96,118.08,null,null,null,null,null,null,null,null,null,"M",null,null,null,null,1,1,1,1,1,1,null,null,null,1]
[{"$f":"(SUBTOTAL(3,$B$105:B123))","v":19},"Pseudomonas aeruginosa - potwierdzenia",null,"PN-EN ISO 16266:2009",122,150.06,null,null,null,null,null,null,null,null,null,"M",null,null,null,null,1,1,1,1,1,1,null,null,null,1]
[{"$f":"(SUBTOTAL(3,$B$105:B124))","v":20},"Salmonella sp.",null,"PN-EN ISO 19250:2013-07",202,248.46,null,null,null,null,null,null,null,null,null,"M",null,null,null,1]
[{"$f":"(SUBTOTAL(3,$B$105:B125))","v":21},"Salmonella sp. - potwierdzenia",null,"PN-EN ISO 19250:2013-07",654,804.42]
[{"$f":"(SUBTOTAL(3,$B$105:B126))","v":22},"Legionella pneumophila - obecność specyficznego DNA N",null,"PB-08/LLM wyd. I z 12.01.2026",516,634.67999999999995,null,null,null,null,null,null,null,null,null,"M",null,null,null,1]
[null,"Inne:"]
[null,"N – metoda nieakredytowana"]
[null,"* zaznaczyć \"x\" wybrane metody badawcze"]
[null,"** jeśli klient wybrał inną metodę niż wymaganą w obszarze regulowanym prawem, wpisać: „metoda spoza obszaru regulowanego prawem”"]
[null,"1,2,3,4,5 - grupy parametrów, w przypadku zlecenia kilku parametrów z danej grupy obowiązuje cena jak za jeden parametr"]